bitfinex-derivatives/quotes_BTCF0:USTF0_20251118
["timestamp","ask_amount","ask_price","bid_price","bid_amount"]
[1763435958715,0.06992,90517.0,90516.0,0.00016578]
[1763435959627,0.07033,90506.0,90505.0,0.05956535]
[1763435959920,0.07033,90490.0,90489.0,0.05956535]
[1763435960127,0.07106267,90490.0,90489.0,0.03071827]
[1763435960423,0.00073267,90490.0,90489.0,0.10349827]
[1763435961223,0.00016578,90499.0,90498.0,0.07278]
[1763435961426,0.08933429,90499.0,90498.0,0.10349827]
[1763435961725,0.00016578,90499.0,90498.0,0.10349827]
[1763435961925,0.07049578,90499.0,90498.0,0.03071827]
[1763435962316,0.07033,90487.0,90481.0,0.05956535]
[1763435962516,0.00016578,90499.0,90490.0,0.00219803]
[1763435962822,0.07033,90491.0,90478.0,0.03975916]
[1763435963025,0.00073267,90490.0,90484.0,0.03969223]
[1763435963326,0.00073267,90490.0,90483.0,0.03969223]
[1763435963526,0.00073267,90490.0,90484.0,0.03969223]
[1763435963727,0.00073267,90490.0,90489.0,0.0352]
[1763435965627,0.08888297,90499.0,90498.0,0.07278]
[1763435966814,0.00016578,90499.0,90498.0,0.07278]
[1763435967020,0.21554272,90530.0,90500.0,0.00219803]
[1763435967220,0.00073267,90510.0,90509.0,0.07143]
[1763435967427,0.08937718,90510.0,90509.0,0.07143]
[1763435967727,0.00073267,90510.0,90509.0,0.07143]
[1763435968427,0.1239964,90510.0,90503.0,0.03968303]
[1763435968629,0.03542267,90510.0,90502.0,0.03968303]
[1763435968924,0.03542267,90510.0,90501.0,0.03968303]
[1763435969226,0.03542267,90510.0,90500.0,0.04204684]
[1763435969628,0.03542267,90510.0,90509.0,0.03676]
[1763435970126,0.03542267,90510.0,90502.0,0.03968303]
[1763435970632,0.12168739,90510.0,90502.0,0.03968303]
[1763435971123,0.12168739,90510.0,90501.0,0.03968303]
[1763435971326,0.03469,90501.0,90500.0,0.00236381]
[1763435971530,0.0717,90501.0,90500.0,0.00236381]
[1763435972030,0.10757472,90510.0,90500.0,0.07379381]
[1763435972233,0.0717,90501.0,90500.0,0.00236381]
[1763435972427,0.0717,90501.0,90500.0,0.00016578]
[1763435973026,0.05841296,90501.0,90500.0,0.00016578]
[1763435974232,0.05841296,90501.0,90500.0,0.03064742]
[1763435974427,0.03183888,90501.0,90500.0,0.03284545]
[1763435974620,0.06652888,90501.0,90500.0,0.03284545]
[1763435976136,0.32311744,90510.0,90500.0,0.10427545]
[1763435976327,0.10830739,90510.0,90501.0,0.03048164]
[1763435976534,0.08699739,90510.0,90509.0,0.07143]
[1763435976729,0.16677638,90509.0,90500.0,0.00236381]
[1763435976930,0.25347296,90510.0,90508.0,0.07143]
[1763435977135,0.08699739,90510.0,90509.0,0.10191308]
[1763435977933,0.08699739,90510.0,90509.0,0.07974308]
[1763435981248,0.08699739,90510.0,90509.0,0.10951744]
[1763435981450,0.08699739,90510.0,90509.0,0.07974308]
[1763435982345,0.15869739,90510.0,90509.0,0.07974308]
[1763435982739,0.15869739,90510.0,90509.0,0.03048308]
[1763435982943,0.15869739,90510.0,90509.0,0.06027529]
[1763435983346,0.15869739,90510.0,90509.0,0.03048308]
[1763435983649,0.15869739,90510.0,90509.0,0.06027529]
[1763435983951,0.15869739,90510.0,90509.0,0.03048308]
[1763435986548,0.13212653,90510.0,90509.0,0.03048308]
[1763435990256,0.13212653,90510.0,90509.0,0.03048308]
[1763435990657,0.0717,90501.0,90500.0,0.00016578]
[1763435990849,0.0717,90501.0,90500.0,0.03285402]
[1763435991753,0.0717,90501.0,90500.0,0.03028924]
[1763435991963,0.0717,90489.0,90488.0,0.02979221]
[1763435992256,0.0717,90485.0,90483.0,0.02981966]
[1763435992444,0.00073267,90490.0,90489.0,0.07143]
[1763435992650,0.26928,90509.0,90490.0,0.00219803]
[1763435992858,0.0717,90496.0,90495.0,0.00764839]
[1763435993048,0.14763274,90500.0,90490.0,0.00236381]
[1763435993049,0.0717,90491.0,90490.0,0.00236381]
[1763435993752,0.16177004,90491.0,90490.0,0.00236381]
[1763435994051,0.16177004,90491.0,90490.0,0.00016578]
[1763435994256,0.32650929,90491.0,90490.0,0.00016578]
[1763435996157,0.0717,90477.0,90468.0,0.03968303]
[1763435996358,0.02131,90480.0,90446.0,0.07913137]
[1763435996359,0.03469,90471.0,90470.0,0.07362803]
[1763435996557,0.02204267,90480.0,90470.0,0.07362803]
[1763435996558,0.14690007,90480.0,90470.0,0.07362803]
[1763435996746,0.14763274,90480.0,90470.0,0.07362803]
[1763435997965,0.00073267,90480.0,90479.0,0.0713]
[1763435998259,0.06947267,90480.0,90479.0,0.03676]
[1763435998457,0.06874,90473.0,90472.0,0.03972125]
[1763435998956,0.06874,90473.0,90470.0,0.00219803]
[1763435998957,0.06874,90471.0,90470.0,0.00219803]
[1763436000453,0.03472,90480.0,90479.0,0.06948]
[1763436000756,0.00016578,90484.0,90483.0,0.06948]
[1763436001160,0.00016578,90484.0,90483.0,0.10917378]
[1763436001553,0.00016578,90484.0,90483.0,0.06948]
[1763436001755,0.02041,90540.0,90509.0,0.06948]
[1763436001948,0.00073267,90510.0,90509.0,0.06948]
[1763436003553,0.00542791,90519.0,90518.0,0.03494]
[1763436003859,0.17105484,90519.0,90518.0,0.10106511]
[1763436004253,0.00542791,90519.0,90518.0,0.10106511]
[1763436004661,0.08975915,90528.0,90527.0,0.06948]
[1763436004860,0.07748,90556.0,90540.0,0.06948]
[1763436005163,0.07748,90556.0,90540.0,0.10326314]
[1763436005164,0.005,90556.0,90540.0,0.10326314]
[1763436005760,0.005,90556.0,90555.0,0.06948]
[1763436006064,0.005,90556.0,90555.0,0.10106511]
[1763436006258,0.005,90556.0,90555.0,0.06948]
[1763436006566,0.09222879,90556.0,90555.0,0.06948]
[1763436006864,0.09222879,90556.0,90555.0,0.10074458]
[1763436007060,0.09322879,90556.0,90555.0,0.10074458]
[1763436007257,0.32824662,90556.0,90555.0,0.03126458]
[1763436007564,0.03472,90551.0,90550.0,0.07167803]
[1763436007867,0.12794879,90556.0,90555.0,0.04731]
[1763436008068,0.12794879,90556.0,90550.0,0.00219803]
[1763436008069,0.06874,90551.0,90550.0,0.00219803]
[1763436008266,0.06874,90551.0,90550.0,0.03343851]
[1763436008565,0.06874,90547.0,90546.0,0.00016568]
[1763436008764,0.06874,90547.0,90546.0,0.03139168]
[1763436009261,0.23482762,90547.0,90546.0,0.00016568]
[1763436009464,0.23482762,90547.0,90516.0,0.03969224]
[1763436009668,0.23482762,90547.0,90520.0,0.07167803]
[1763436009669,0.14763274,90530.0,90520.0,0.07167803]
[1763436009965,0.00073267,90530.0,90529.0,0.03494]
[1763436010170,0.00073267,90530.0,90529.0,0.06948]
[1763436010356,0.06947267,90530.0,90520.0,0.00016568]
[1763436010558,0.06874,90522.0,90521.0,0.03121629]
[1763436011565,0.03472,90522.0,90521.0,0.10069629]
[1763436011765,0.06874,90522.0,90521.0,0.03121629]
[1763436012564,0.06874,90521.0,90520.0,0.00236371]
[1763436012868,0.06874,90521.0,90520.0,0.03357648]
[1763436013255,0.01124176,90528.0,90520.0,0.10305648]
[1763436013461,0.14763274,90530.0,90521.0,0.03121073]
[1763436013662,0.06874,90521.0,90520.0,0.00236371]
[1763436013865,0.06874,90521.0,90520.0,0.00016568]
[1763436014065,0.23425142,90521.0,90520.0,0.00016568]
[1763436014464,0.32433599,90521.0,90520.0,0.00016568]
[1763436014864,0.32433599,90521.0,90470.0,0.00999999]
[1763436014865,0.00073267,90520.0,90495.0,0.06956237]
[1763436015170,0.06874,90501.0,90496.0,0.03153144]
[1763436015470,0.03472,90497.0,90496.0,0.06948]
[1763436015665,0.00073267,90500.0,90499.0,0.03494]
[1763436015865,0.00073267,90500.0,90499.0,0.06948]
[1763436016272,0.03545267,90500.0,90499.0,0.06948]
[1763436016581,0.03545267,90500.0,90495.0,8.237e-05]
[1763436016582,0.06874,90496.0,90495.0,8.237e-05]
[1763436016761,0.06874,90496.0,90495.0,0.03156492]
[1763436017156,0.06874,90496.0,90495.0,0.06650492]
[1763436017366,0.06874,90496.0,90495.0,0.10104492]
[1763436017666,0.00073267,90500.0,90495.0,0.10104492]
[1763436017667,0.00073267,90500.0,90499.0,0.03494]
[1763436017874,0.00073267,90500.0,90499.0,0.10096255]
[1763436018068,0.00016568,90509.0,90508.0,0.06948]
[1763436018372,0.00016568,90509.0,90508.0,0.10096255]
[1763436018973,0.06710568,90509.0,90508.0,0.03148255]
[1763436019182,0.06710568,90509.0,90495.0,8.237e-05]
[1763436019470,0.06710568,90509.0,90500.0,0.00219803]
[1763436019659,0.06710568,90509.0,90501.0,0.03148472]
[1763436019865,0.06710568,90509.0,90502.0,0.03148472]
[1763436020177,0.06710568,90509.0,90503.0,0.03148472]
[1763436020472,0.06710568,90509.0,90504.0,0.03148472]
[1763436020665,0.06710568,90509.0,90505.0,0.03148472]
[1763436020974,0.03151,90507.0,90506.0,0.03148472]
[1763436021169,0.03151,90507.0,90506.0,0.06443472]
[1763436021369,0.00016568,90509.0,90508.0,0.06438]
[1763436021561,0.06389568,90509.0,90495.0,8.237e-05]
[1763436021766,0.00073267,90500.0,90499.0,0.06438]
[1763436022071,0.00016568,90509.0,90500.0,0.00219803]
[1763436022267,0.00016568,90509.0,90501.0,0.03148177]
[1763436022572,0.00016568,90509.0,90502.0,0.03148177]
[1763436022773,0.00016568,90509.0,90508.0,0.03295]
[1763436022960,0.03167568,90509.0,90508.0,0.03295]
[1763436023162,0.03167568,90509.0,90508.0,0.06444067]
[1763436023365,0.06389568,90509.0,90508.0,0.03149067]
[1763436023575,0.06389568,90509.0,90495.0,8.237e-05]
[1763436023775,0.06373,90501.0,90500.0,0.00219803]
[1763436023984,0.06373,90501.0,90500.0,0.03368819]
[1763436024975,0.06373,90501.0,90495.0,8.237e-05]
[1763436024976,0.06373,90496.0,90495.0,8.237e-05]
[1763436025178,0.00073267,90500.0,90468.0,0.09505224]
[1763436025179,0.06373,90491.0,90468.0,0.09505224]
[1763436025373,0.01879,90492.0,90470.0,0.00219803]
[1763436025374,0.06373,90471.0,90470.0,0.00219803]
[1763436025679,0.06373,90471.0,90470.0,0.06664756]
[1763436025873,0.01879,90480.0,90470.0,0.09807756]
[1763436026068,9.412e-05,90479.0,90471.0,0.03149953]
[1763436026379,9.412e-05,90479.0,90472.0,0.03149953]
[1763436026575,9.412e-05,90479.0,90473.0,0.03149953]
[1763436026770,9.412e-05,90479.0,90470.0,0.00219803]
[1763436026972,9.412e-05,90479.0,90471.0,0.03150147]
[1763436027169,9.412e-05,90479.0,90478.0,0.06624]
[1763436027373,9.412e-05,90479.0,90478.0,0.09774147]
[1763436028178,0.00016578,90484.0,90483.0,0.06371]
[1763436028378,0.01913,90545.0,90483.0,0.06371]
[1763436028379,0.14444,90531.0,90499.0,0.06371]
[1763436028580,0.06549,90511.0,90510.0,0.00219803]
[1763436028881,0.23025512,90511.0,90510.0,0.00219803]
[1763436029578,0.09040386,90520.0,90510.0,0.09742292]
[1763436029784,0.00089845,90520.0,90511.0,0.03151489]
[1763436030081,0.16540601,90519.0,90512.0,0.03151489]
[1763436030270,0.16540601,90519.0,90513.0,0.03151489]
[1763436030474,0.16540601,90519.0,90510.0,0.00219803]
[1763436030673,0.16540601,90519.0,90511.0,0.03151767]
[1763436030879,0.06549,90513.0,90512.0,0.03151767]
[1763436031382,0.06549,90513.0,90512.0,0.06193767]
[1763436031587,0.23664804,90520.0,90512.0,0.09522767]
[1763436031787,0.23738071,90520.0,90513.0,0.03151767]
[1763436032077,0.16564243,90519.0,90514.0,0.03152072]
[1763436032280,0.16564243,90519.0,90515.0,0.03152072]
[1763436032484,0.16564243,90519.0,90516.0,0.03152072]
[1763436032676,0.16564243,90519.0,90510.0,0.00219803]
[1763436032986,0.16564243,90519.0,90511.0,0.03152046]
[1763436033172,0.09048064,90520.0,90519.0,0.03042]
[1763436033381,0.09048064,90520.0,90519.0,0.09522971]
[1763436034278,0.12321064,90520.0,90519.0,0.09522971]
[1763436034780,0.15597064,90520.0,90519.0,0.03151971]
[1763436035382,0.08462,90506.0,90505.0,0.03956541]
[1763436035580,0.03273,90506.0,90505.0,0.06371]
[1763436035893,0.00073267,90510.0,90505.0,0.06371]
[1763436036577,0.00073267,90510.0,90509.0,0.06371]
[1763436037274,0.08974797,90520.0,90519.0,0.06371]
[1763436037479,0.09048064,90520.0,90519.0,0.06371]
[1763436038186,0.08974797,90520.0,90519.0,0.06371]
[1763436038692,0.09048064,90520.0,90519.0,0.10327541]
[1763436038882,0.09048064,90520.0,90519.0,0.06371]
[1763436039192,0.09048064,90520.0,90519.0,0.10327541]
[1763436040392,0.15597064,90520.0,90518.0,0.03956541]
[1763436040693,0.15597064,90520.0,90510.0,0.04176344]
[1763436040694,0.03273,90512.0,90510.0,0.04176344]
[1763436040985,0.01944569,90511.0,90510.0,0.00219803]
[1763436041983,0.05220569,90511.0,90510.0,0.00219803]
[1763436042887,0.01944569,90511.0,90510.0,0.03261803]
[1763436043087,0.01944569,90511.0,90510.0,0.01044803]
[1763436043689,0.03273,90511.0,90510.0,0.01044803]
[1763436043900,0.06768803,90510.0,90509.0,0.03956541]
[1763436044293,0.06768803,90510.0,90509.0,0.06998541]
[1763436044698,0.03492803,90510.0,90509.0,0.06371]
[1763436045899,0.00219803,90510.0,90509.0,0.03042]
[1763436046102,0.06549,90506.0,90505.0,0.03956541]
[1763436046301,0.06549,90502.0,90493.0,0.03956541]
[1763436046506,0.06549,90502.0,90480.0,0.01895]
[1763436046507,0.06549,90502.0,90491.0,0.03956541]
[1763436046900,0.06549,90502.0,90490.0,0.03956541]
[1763436047099,0.06549,90502.0,90489.0,0.03956541]
[1763436047400,0.06549,90487.0,90486.0,0.03956541]
[1763436047598,0.06549,90487.0,90486.0,0.03077054]
[1763436047796,0.00219803,90490.0,90489.0,0.06371]
[1763436048107,0.00219803,90490.0,90489.0,0.09448054]
[1763436048805,0.09047826,90490.0,90489.0,0.09448054]
[1763436049103,0.03289578,90499.0,90498.0,0.06371]
[1763436049300,0.06565578,90499.0,90498.0,0.03077054]
[1763436050904,0.15401905,90499.0,90498.0,0.03077054]
[1763436057111,0.15401905,90499.0,90498.0,0.06119054]
[1763436057414,0.08852905,90499.0,90498.0,0.09292054]
[1763436058906,0.08852905,90499.0,90498.0,0.12268845]
[1763436059805,0.08852905,90499.0,90498.0,0.09292054]
[1763436060313,0.12083905,90499.0,90498.0,0.09292054]
[1763436060512,0.15213905,90499.0,90498.0,0.09292054]
[1763436060712,0.08852905,90499.0,90498.0,0.09292054]
[1763436060913,0.08852905,90499.0,90498.0,0.09293476]
[1763436062515,0.04269905,90499.0,90498.0,0.15228288]
[1763436062712,0.26912,90525.0,90498.0,0.15228288]
[1763436063017,0.00219803,90510.0,90509.0,0.06147]
[1763436063205,0.00219803,90510.0,90509.0,0.09225476]
[1763436063402,0.09245281,90510.0,90509.0,0.09225476]
[1763436064009,0.15606281,90510.0,90509.0,0.09225476]
[1763436064608,0.15606281,90510.0,90509.0,0.03078476]
[1763436065409,0.32237305,90510.0,90505.0,0.02979089]
[1763436065605,0.32237305,90510.0,90500.0,0.02995667]
[1763436065606,0.06361,90501.0,90500.0,0.02995667]
[1763436065922,0.22992024,90501.0,90500.0,0.00016578]
[1763436066614,0.15386478,90510.0,90509.0,0.06147]
[1763436066815,0.15606281,90510.0,90500.0,0.00016578]
[1763436067018,0.16514824,90509.0,90500.0,0.00016578]
[1763436067717,0.03231,90501.0,90500.0,0.02990578]
[1763436067916,0.03231,90501.0,90500.0,0.09142897]
[1763436068517,0.03231,90501.0,90500.0,0.06163578]
[1763436069719,0.09025478,90510.0,90500.0,0.06163578]
[1763436069917,0.00219803,90510.0,90503.0,0.02980309]
[1763436070112,0.06361,90504.0,90503.0,0.02980309]
[1763436070313,0.06361,90504.0,90500.0,0.00016578]
[1763436070314,0.03231,90501.0,90500.0,0.00016578]
[1763436070512,0.03231,90501.0,90500.0,0.02990578]
[1763436070720,0.06361,90501.0,90500.0,0.02990578]
[1763436071015,0.06361,90501.0,90500.0,0.00016578]
[1763436071219,0.06361,90501.0,90500.0,0.02990578]
[1763436072013,0.06361,90501.0,90500.0,0.00016578]
[1763436072320,0.23038247,90501.0,90500.0,0.00016578]
[1763436074214,0.16677247,90501.0,90500.0,0.06163578]
[1763436074425,0.16677247,90501.0,90500.0,0.00016578]
[1763436074426,0.23038247,90501.0,90500.0,0.00016578]
[1763436074609,0.06361,90501.0,90500.0,0.00016578]
[1763436074815,0.22903431,90501.0,90500.0,0.06163578]
[1763436076220,0.22903431,90501.0,90500.0,0.00016578]
[1763436076425,0.06361,90493.0,90491.0,0.02981915]
[1763436076626,0.06361,90490.0,90484.0,0.03971563]
[1763436076818,0.06580803,90490.0,90485.0,0.03971563]
[1763436077019,0.16557157,90489.0,90485.0,0.03971563]
[1763436077326,0.22918157,90489.0,90486.0,0.03971563]
[1763436077521,0.06361,90488.0,90487.0,0.03052059]
[1763436077829,0.26908,90497.0,90489.0,0.06147]
[1763436077830,0.00219803,90490.0,90489.0,0.06147]
[1763436078029,0.00219803,90490.0,90489.0,0.03052059]
[1763436078030,0.06580803,90490.0,90489.0,0.03052059]
[1763436078217,0.00073267,90490.0,90489.0,0.03052059]
[1763436078413,0.00073267,90490.0,90457.0,0.05536]
[1763436078613,0.00073267,90490.0,90444.0,0.29864444]
[1763436078614,0.05674,90481.0,90480.0,0.00219803]
[1763436078817,0.01691267,90480.0,90458.0,0.03319]
[1763436079127,0.01691267,90480.0,90479.0,0.05404]
[1763436079128,0.04475267,90480.0,90479.0,0.05404]
[1763436079331,0.07365267,90480.0,90479.0,0.05404]
[1763436079625,0.00073267,90480.0,90479.0,0.05404]
[1763436080814,0.08999955,90480.0,90479.0,0.05404]
[1763436081015,0.02857267,90480.0,90479.0,0.05404]
[1763436081221,0.07365267,90480.0,90479.0,0.05404]
[1763436081423,0.05674,90471.0,90470.0,0.0333013]
[1763436082129,0.22267486,90471.0,90470.0,0.06271933]
[1763436082420,0.22267486,90471.0,90470.0,0.08953933]
[1763436082421,0.02784,90471.0,90470.0,0.08953933]
[1763436082629,0.26908,90476.0,90470.0,0.08953933]
[1763436082930,0.02355,90473.0,90472.0,0.11704779]
[1763436083224,0.26908,90477.0,90470.0,0.0001113]
[1763436083225,0.05674,90471.0,90470.0,0.0001113]
[1763436083424,0.05674,90447.0,90430.0,1.5]
[1763436083927,0.05674,90447.0,90446.0,0.08285641]
[1763436084225,0.02784,90447.0,90446.0,0.10967641]
[1763436084525,0.00073267,90450.0,90449.0,0.05404]
[1763436084723,0.00073267,90450.0,90449.0,0.1094]
[1763436084928,0.05747267,90450.0,90449.0,0.05536]
[1763436085427,0.22345782,90450.0,90449.0,0.05536]
[1763436085631,0.05674,90447.0,90446.0,0.00027641]
[1763436086525,0.02784,90434.0,90433.0,0.08258]
[1763436086927,0.02784,90434.0,90433.0,0.1094]
[1763436088024,0.05557,90434.0,90433.0,0.1094]
[1763436088231,0.08860389,90447.0,90433.0,0.1094]
[1763436088528,0.27817,90447.0,90446.0,0.02633]
[1763436088716,0.27817,90447.0,90433.0,0.05536]
[1763436088925,0.05557,90441.0,90440.0,0.00219803]
[1763436089520,0.2226,90447.0,90440.0,0.00219803]
[1763436089722,0.05557,90441.0,90440.0,0.00219803]
[1763436090425,0.05557,90441.0,90440.0,0.03350648]
[1763436091525,0.02634,90460.0,90459.0,0.05294]
[1763436091725,0.09254267,90460.0,90459.0,0.05294]
[1763436091923,0.2219654,90460.0,90459.0,0.08423746]
[1763436092122,0.1663954,90460.0,90459.0,0.08423746]
[1763436092327,0.21541843,90480.0,90460.0,0.00219803]
[1763436092627,0.02634,90467.0,90466.0,0.05294]
[1763436092835,0.05557,90467.0,90466.0,0.03129746]
[1763436093025,0.22102497,90467.0,90466.0,0.08665746]
[1763436094828,0.02634,90462.0,90461.0,0.00016578]
[1763436095022,0.05557,90462.0,90461.0,0.00016578]
[1763436095223,0.05557,90462.0,90461.0,0.08185578]
[1763436095820,0.05557,90462.0,90461.0,0.10846578]
[1763436096734,0.04227797,90462.0,90461.0,0.10846578]
[1763436097235,0.04227797,90462.0,90461.0,0.05552578]
[1763436097427,0.20812934,90462.0,90461.0,0.05552578]
[1763436097828,0.00073267,90460.0,90443.0,0.03336578]
[1763436098038,0.00073267,90460.0,90450.0,0.00219803]
[1763436098039,0.05557,90451.0,90450.0,0.00219803]
[1763436098232,0.05557,90444.0,90443.0,0.03336578]
[1763436098535,0.02160733,90431.0,90430.0,1.5]
[1763436098732,0.02160733,90431.0,90430.0,1.50219803]
[1763436098933,0.18773525,90431.0,90430.0,1.50219803]
[1763436099324,0.25431859,90431.0,90430.0,1.50219803]
[1763436100129,0.08819067,90431.0,90430.0,1.50219803]
[1763436100323,0.02617999,90480.0,90441.0,0.02316]
[1763436100324,0.1155843,90450.0,90441.0,0.02316]
[1763436100526,0.08741738,90450.0,90441.0,0.02316]
[1763436100735,0.16612491,90449.0,90448.0,0.02633]
[1763436100939,0.16612491,90449.0,90441.0,0.02316]
[1763436104628,0.16612491,90449.0,90441.0,0.04949]
[1763436105031,0.16612491,90449.0,90436.0,0.00016587]
[1763436105523,0.16612491,90449.0,90430.0,1.5]
[1763436105728,0.2161511,90440.0,90430.0,1.50219803]
[1763436106027,0.16545344,90439.0,90430.0,1.50219803]
[1763436106733,0.15215568,90439.0,90430.0,1.50219803]
[1763436106939,0.15215568,90439.0,90431.0,0.03448997]
[1763436107235,0.15215568,90439.0,90430.0,1.50219803]
[1763436107431,0.15215568,90439.0,90432.0,0.02316]
[1763436107631,0.26916,90438.0,90432.0,0.02316]
[1763436107828,0.26916,90438.0,90430.0,1.50219803]
[1763436108030,0.16558314,90437.0,90430.0,1.50219803]
[1763436108637,0.16558314,90437.0,90434.0,0.03966903]
[1763436108936,0.16558314,90437.0,90430.0,1.50219803]
[1763436110034,0.16558314,90437.0,90422.0,0.08574776]
[1763436110230,0.00073267,90430.0,90423.0,0.08574776]
[1763436110431,0.00073267,90430.0,90429.0,0.05294]
[1763436110637,0.00073267,90430.0,90423.0,0.05941776]
[1763436110937,0.16655746,90430.0,90424.0,1.5]
[1763436111331,0.16655746,90430.0,90425.0,0.05941776]
[1763436111534,0.16655746,90430.0,90424.0,1.55941776]
[1763436112138,0.16655746,90430.0,90429.0,0.02633]
[1763436112741,0.16655746,90430.0,90424.0,1.5]
[1763436112937,0.16655746,90430.0,90423.0,0.05941776]
[1763436113134,0.16655746,90430.0,90423.0,0.08574776]
[1763436113338,0.16655746,90430.0,90420.0,0.05941776]
[1763436113536,0.31368649,90430.0,90412.0,0.05941776]
[1763436114042,0.31368649,90430.0,90420.0,1.5]
[1763436114237,0.31368649,90430.0,90407.0,0.05941776]
[1763436114543,0.31368649,90430.0,90406.0,0.00027653]
[1763436114740,0.14712903,90417.0,90406.0,0.00027653]
[1763436114944,0.26916,90416.0,90406.0,0.00027653]
[1763436115244,0.42340758,90416.0,90406.0,0.00027653]
[1763436115545,0.41233758,90416.0,90406.0,0.00027653]
[1763436115836,0.41233758,90416.0,90406.0,1.50027653]
[1763436116042,0.55946661,90416.0,90410.0,0.00219803]
[1763436116245,9.125e-05,90415.0,90400.0,0.05941776]
[1763436116431,0.00073267,90410.0,90400.0,0.00219803]
[1763436116837,0.16618983,90409.0,90400.0,0.00219803]
[1763436117039,0.16618983,90409.0,90387.0,0.08257776]
[1763436117040,0.27678983,90409.0,90387.0,0.08257776]
[1763436117239,0.27678983,90409.0,90368.0,0.07923971]
[1763436117240,0.27678983,90409.0,90359.0,0.07923971]
[1763436117241,0.1106,90396.0,90359.0,0.07923971]
[1763436117435,0.00219803,90380.0,90354.0,0.02804]
[1763436117641,0.14712903,90376.0,90363.0,0.02804]
[1763436117840,0.00219803,90370.0,90369.0,0.05271014]
[1763436118037,0.08895967,90370.0,90369.0,0.05271014]
[1763436118233,0.08895967,90370.0,90363.0,0.02804]
[1763436118234,0.16820682,90370.0,90363.0,0.02804]
[1763436118438,0.16820682,90370.0,90354.0,0.02804]
[1763436118439,0.11064,90369.0,90354.0,0.02804]
[1763436118637,0.00219803,90360.0,90354.0,0.02804]
[1763436118834,0.2692,90359.0,90344.0,0.00011285]
[1763436119039,0.00219803,90350.0,90349.0,0.03641]
[1763436119343,0.34638627,90359.0,90350.0,0.03023803]
[1763436119546,0.34638627,90359.0,90351.0,0.03379492]
[1763436119749,0.16494743,90358.0,90352.0,0.03379492]
[1763436120044,0.43414743,90358.0,90353.0,0.03379492]
[1763436120238,0.43414743,90358.0,90354.0,0.01209603]
[1763436120437,0.43414743,90358.0,90350.0,0.03023803]
[1763436120637,0.16494743,90358.0,90357.0,0.07487]
[1763436120844,0.43418743,90358.0,90357.0,0.07487]
[1763436121041,0.43418743,90358.0,90350.0,0.02804]
[1763436121042,0.26924,90358.0,90350.0,0.02804]
[1763436121248,0.16587408,90358.0,90350.0,0.03023803]
[1763436121544,0.26924,90357.0,90350.0,0.02804]
[1763436121845,0.16692793,90356.0,90350.0,0.03023803]
[1763436122639,0.16692793,90356.0,90355.0,0.07487]
[1763436122843,0.00016597,90361.0,90360.0,0.07487]
[1763436123038,0.00016597,90361.0,90360.0,0.07706803]
[1763436124145,0.00016597,90361.0,90350.0,0.02804]
[1763436124146,0.00073267,90360.0,90350.0,0.02804]
[1763436124342,0.00073267,90360.0,90359.0,0.07487]
[1763436124747,0.16584404,90360.0,90350.0,0.02804]
[1763436125048,0.4601021,90360.0,90350.0,0.02804]
[1763436125243,0.4601021,90360.0,90350.0,0.03023803]
[1763436125446,0.31297307,90360.0,90350.0,0.03023803]
[1763436125649,1.35679248,90360.0,90344.0,0.00011285]
[1763436125841,0.4601021,90360.0,90344.0,0.00011285]
[1763436126840,0.4601021,90360.0,90350.0,0.00219803]
[1763436127041,0.4601021,90360.0,90344.0,0.00011285]
[1763436127443,1.33507978,90360.0,90343.0,0.01143603]
[1763436127644,0.4601021,90360.0,90343.0,0.01099603]
[1763436128039,0.4601021,90360.0,90326.0,0.00027678]
[1763436128244,0.14712903,90340.0,90339.0,0.07487]
[1763436128549,0.44052329,90340.0,90339.0,0.07487]
[1763436130244,0.17120329,90340.0,90339.0,0.07487]
[1763436130444,0.44052329,90340.0,90339.0,0.07487]
[1763436130643,0.27405253,90340.0,90339.0,0.07487]
[1763436131348,0.09200146,90340.0,90339.0,0.07487]
[1763436132241,0.09200146,90340.0,90339.0,0.10834793]
[1763436133151,0.00016597,90361.0,90360.0,0.07487]
[1763436133352,0.00016597,90361.0,90360.0,0.11054596]
[1763436133551,0.1660329,90361.0,90360.0,0.11054596]
[1763436134547,0.25393735,90361.0,90360.0,0.11054596]
[1763436135848,0.25393735,90361.0,90360.0,0.03567596]
[1763436136043,0.25393735,90361.0,90360.0,0.11054596]
[1763436136445,0.25393735,90361.0,90360.0,0.13858596]
[1763436136746,0.14712903,90380.0,90379.0,0.07487]
[1763436136946,0.28122169,90380.0,90379.0,0.10834793]
[1763436137149,0.44789761,90380.0,90379.0,0.10834793]
[1763436137346,0.44789761,90380.0,90379.0,0.03347793]
[1763436137537,0.44789761,90380.0,90379.0,0.06988793]
[1763436137742,0.44789761,90380.0,90379.0,0.03347793]
[1763436138143,0.44789761,90380.0,90379.0,0.06988793]
[1763436138348,0.44789761,90380.0,90379.0,0.10834793]
[1763436138547,0.53582789,90380.0,90379.0,0.10834793]
[1763436139456,0.53582789,90380.0,90379.0,0.03347793]
[1763436141156,0.53582789,90380.0,90379.0,0.13596793]
[1763436141561,0.25533887,90380.0,90379.0,0.13596793]
[1763436142957,0.2420345,90380.0,90379.0,0.13596793]
[1763436144862,0.2420345,90380.0,90379.0,0.03347793]
[1763436147562,0.2420345,90380.0,90379.0,0.13696793]
[1763436147764,0.5113145,90380.0,90379.0,0.13696793]
[1763436147959,0.2420345,90380.0,90379.0,0.13696793]
[1763436148162,0.2420345,90380.0,90379.0,0.11480793]
[1763436150055,0.08793028,90380.0,90379.0,0.11480793]
[1763436150267,0.01141599,90389.0,90388.0,0.10153]
[1763436150461,0.08024597,90389.0,90388.0,0.10153]
[1763436150665,0.00016597,90389.0,90388.0,0.16111367]
[1763436150967,0.00016597,90389.0,90388.0,0.10153]
[1763436151271,0.25039903,90410.0,90409.0,0.05083]
[1763436151466,0.37255,90410.0,90409.0,0.08060673]
[1763436151768,0.53818381,90410.0,90409.0,0.02977673]
[1763436151962,0.54979058,90410.0,90409.0,0.02977673]
[1763436152162,0.54979058,90410.0,90409.0,1.52977673]
[1763436152163,0.28051058,90410.0,90409.0,1.52977673]
[1763436152359,0.54979058,90410.0,90409.0,1.5]
[1763436152964,0.63671736,90410.0,90409.0,1.5]
[1763436156262,0.63671736,90410.0,90409.0,1.53031]
[1763436156676,0.53344736,90410.0,90409.0,1.53031]
[1763436156971,0.52184059,90410.0,90409.0,1.53031]
[1763436157166,0.63627495,90410.0,90409.0,1.53031]
[1763436158062,0.52184059,90410.0,90409.0,1.53031]
[1763436158465,0.62511059,90410.0,90409.0,1.53031]
[1763436159268,0.62511059,90410.0,90389.0,0.03970231]
[1763436159269,0.1106,90409.0,90389.0,0.03970231]
[1763436159465,0.1106,90409.0,90380.0,0.05302803]
[1763436159466,0.14712903,90399.0,90380.0,0.05302803]
[1763436159664,0.14712903,90390.0,90387.0,0.03031]